fUSD/lending_fUSD_20260126
["ID","MTS","AMOUNT","RATE_DAILY","PERIOD"]
[403600842,1769411448349,-1511.96,0.00016438,2]
[403600843,1769411448359,-1511.96,0.00016438,2]
[403600844,1769411448368,-646.04589032,0.00016438,2]
[403600845,1769411448377,-646.04589032,0.00016438,2]
[403600846,1769411448388,-646.04589032,0.00016438,2]
[403600847,1769411448398,-646.04589032,0.00016438,2]
[403600848,1769411448408,-646.04589032,0.00016438,2]
[403600849,1769411448418,-646.04589032,0.00016438,2]
[403600850,1769411448427,-646.04589032,0.00016438,2]
[403600851,1769411448436,-646.04589032,0.00016438,2]
[403600852,1769411448445,-1511.96,0.00016438,2]
[403600853,1769411448455,-646.04589032,0.00016438,2]
[403600854,1769411448465,-798.0,0.00016438,2]
[403600855,1769411448475,-151.0,0.00016438,2]
[403600856,1769411448484,-1981.0,0.00016438,2]
[403600857,1769411448494,-227.03,0.00016438,2]
[403600858,1769411448504,-1000.0,0.00016438,2]
[403600859,1769411448513,-506.0,0.00016439,2]
[403600860,1769411448523,-867.98,0.00016493,2]
[403600861,1769411448533,-152.0,0.00016494,5]
[403600862,1769411448543,-14244.83607254,0.000165,2]
[403600863,1769411448552,-1000.0,0.00016515,2]
[403600864,1769411448562,-1198.0,0.00016521,2]
[403600865,1769411448571,-150.0,0.00016535,2]
[403600866,1769411448581,-11572.55364352,0.00016542,2]
[403600867,1769411448591,-304.20833879,0.0001656,2]
[403600868,1769411448600,-167.65,0.00016578,2]
[403600869,1769411448610,-151.0,0.00016579,2]
[403600870,1769411448619,-151.72333202,0.00016579,2]
[403600871,1769411448628,-318.15,0.00016591,2]
[403600872,1769411448637,-505.26354102,0.00016602,2]
[403600873,1769411448647,-500.0,0.00016602,2]
[403600874,1769411448656,-1000.0,0.00016625,2]
[403600875,1769411448666,-889.92,0.0001663,2]
[403600876,1769411448676,-200.0,0.00016633,2]
[403600877,1769411448685,-3246.97110664,0.0001666,2]
[403600878,1769411448695,-969.26,0.00016675,2]
[403600879,1769411448706,-918.64355495,0.00016697,2]
[403600880,1769411448717,-187.78006525,0.00016697,2]
[403600881,1769411448726,-151.0,0.00016697,2]
[403600882,1769411448736,-230.0,0.00016711,2]
[403600883,1769411448747,-230.0,0.00016711,2]
[403600884,1769411448756,-1000.0,0.00016712,2]
[403600885,1769411448765,-166.56,0.00016712,2]
[403600886,1769411448774,-500.0,0.00016719,2]
[403600887,1769411448785,-1086.0,0.0001672,2]
[403600888,1769411448795,-1086.0,0.0001672,2]
[403600889,1769411448804,-182.0,0.0001672,2]
[403600890,1769411448814,-837.0,0.0001672,2]
[403600891,1769411448823,-1086.0,0.0001672,2]
[403600892,1769411448832,-1086.0,0.0001672,2]
[403600893,1769411448842,-1086.0,0.0001672,2]
[403600894,1769411448852,-1092.0,0.0001672,2]
[403600895,1769411448861,-388.63610766,0.0001672,2]
[403600896,1769411448870,-241.96889033,0.00016728,2]
[403600897,1769411448879,-174.87882673,0.00016728,2]
[403600898,1769411448889,-400.55876,0.0001673,2]
[403600899,1769411448898,-400.55876,0.0001673,2]
[403600900,1769411448908,-400.55876,0.0001673,2]
[403600901,1769411448918,-400.55876,0.0001673,2]
[403600902,1769411448927,-171.44,0.00016754,2]
[403600903,1769411448937,-500.0,0.00016767,2]
[403600904,1769411448947,-500.0,0.00016767,2]
[403600905,1769411448956,-500.0,0.00016767,2]
[403600906,1769411448965,-500.0,0.00016767,2]
[403600907,1769411448975,-500.0,0.00016767,2]
[403600908,1769411448984,-500.0,0.00016767,2]
[403600909,1769411448995,-500.0,0.00016767,2]
[403600910,1769411449004,-500.0,0.00016767,2]
[403600911,1769411449014,-500.0,0.00016767,2]
[403600912,1769411449024,-500.0,0.00016767,2]
[403600913,1769411449033,-500.0,0.00016767,2]
[403600914,1769411449043,-500.0,0.00016767,2]
[403600915,1769411449052,-500.0,0.00016767,2]
[403600916,1769411449062,-500.0,0.00016767,2]
[403600917,1769411449071,-500.0,0.00016767,2]
[403600918,1769411449080,-500.0,0.00016767,2]
[403600919,1769411449090,-500.0,0.00016767,2]
[403600920,1769411449099,-500.0,0.00016767,2]
[403600921,1769411449108,-500.0,0.00016767,2]
[403600922,1769411449118,-500.0,0.00016767,2]
[403600923,1769411449127,-500.0,0.00016767,2]
[403600924,1769411449137,-500.0,0.00016767,2]
[403600925,1769411449147,-500.0,0.00016767,2]
[403600926,1769411449156,-500.0,0.00016767,2]
[403600927,1769411449167,-500.0,0.00016767,2]
[403600928,1769411449177,-500.0,0.00016767,2]
[403600929,1769411449187,-500.0,0.00016767,2]
[403600930,1769411449196,-500.0,0.00016767,2]
[403600931,1769411449206,-500.0,0.00016767,2]
[403600932,1769411449217,-500.0,0.00016767,2]
[403600933,1769411449230,-500.0,0.00016767,2]
[403600934,1769411449239,-500.0,0.00016767,2]
[403600935,1769411449248,-500.0,0.00016767,2]
[403600936,1769411449258,-500.0,0.00016767,2]
[403600937,1769411449267,-500.0,0.00016767,2]
[403600938,1769411449276,-500.0,0.00016767,2]
[403600939,1769411449286,-500.0,0.00016767,2]
[403600940,1769411449295,-500.0,0.00016767,2]
[403600941,1769411449305,-500.0,0.00016767,2]
[403600942,1769411449315,-500.0,0.00016767,2]
[403600943,1769411449324,-500.0,0.00016767,2]
[403600944,1769411449333,-500.0,0.00016767,2]
[403600945,1769411449343,-500.0,0.00016767,2]
[403600946,1769411449352,-500.0,0.00016767,2]
[403600947,1769411449361,-500.0,0.00016767,2]
[403600948,1769411449371,-500.0,0.00016767,2]
[403600949,1769411449381,-500.0,0.00016767,2]
[403600950,1769411449390,-500.0,0.00016767,2]
[403600951,1769411449399,-500.0,0.00016767,2]
[403600952,1769411449409,-500.0,0.00016767,2]
[403600953,1769411449419,-500.0,0.00016767,2]
[403600954,1769411449429,-500.0,0.00016767,2]
[403600955,1769411449439,-500.0,0.00016767,2]
[403600956,1769411449448,-500.0,0.00016767,2]
[403600957,1769411449458,-500.0,0.00016767,2]
[403600958,1769411449467,-500.0,0.00016767,2]
[403600959,1769411449481,-500.0,0.00016767,2]
[403600960,1769411449490,-500.0,0.00016767,2]
[403600961,1769411449500,-579.0,0.00016767,2]
[403600962,1769411449509,-500.0,0.00016767,2]
[403600963,1769411449519,-500.0,0.00016767,2]
[403600964,1769411449529,-500.0,0.00016767,2]
[403600965,1769411449539,-500.0,0.00016767,2]
[403600966,1769411449548,-500.0,0.00016767,2]
[403600967,1769411449558,-500.0,0.00016767,2]
[403600968,1769411449567,-500.0,0.00016767,2]
[403600969,1769411449577,-500.0,0.00016767,2]
[403600970,1769411449587,-500.0,0.00016767,2]
[403600971,1769411449597,-500.0,0.00016767,2]
[403600972,1769411449606,-500.0,0.00016767,2]
[403600973,1769411449615,-500.0,0.00016767,2]
[403600974,1769411449624,-500.0,0.00016767,2]
[403600975,1769411449634,-500.0,0.00016767,2]
[403600976,1769411449643,-500.0,0.00016767,2]
[403600977,1769411449653,-500.0,0.00016767,2]
[403600978,1769411449661,-500.0,0.00016767,2]
[403600979,1769411449671,-500.0,0.00016767,2]
[403600980,1769411449680,-500.0,0.00016767,2]
[403600981,1769411449690,-500.0,0.00016767,2]
[403600982,1769411449699,-500.0,0.00016767,2]
[403600983,1769411449714,-500.0,0.00016767,2]
[403600984,1769411449724,-500.0,0.00016767,2]
[403600985,1769411449733,-500.0,0.00016767,2]
[403600986,1769411449743,-500.0,0.00016767,2]
[403600987,1769411449753,-500.0,0.00016767,2]
[403600988,1769411449763,-500.0,0.00016767,2]
[403600989,1769411449773,-500.0,0.00016767,2]
[403600990,1769411449784,-500.0,0.00016767,2]
[403600991,1769411449793,-500.0,0.00016767,2]
[403600992,1769411449803,-500.0,0.00016767,2]
[403600993,1769411449812,-500.0,0.00016767,2]
[403600994,1769411449821,-500.0,0.00016767,2]
[403600995,1769411449831,-500.0,0.00016767,2]
[403600996,1769411449911,-500.0,0.00016767,2]
[403600997,1769411449921,-500.0,0.00016767,2]
[403600998,1769411449930,-500.0,0.00016767,2]
[403600999,1769411449940,-500.0,0.00016767,2]
[403601000,1769411449949,-500.0,0.00016767,2]
[403601001,1769411449958,-500.0,0.00016767,2]
[403601002,1769411449966,-500.0,0.00016767,2]
[403601003,1769411449975,-500.0,0.00016767,2]
[403601004,1769411449984,-500.0,0.00016767,2]
[403601005,1769411449993,-986.0,0.00016767,2]
[403601006,1769411450002,-551.0,0.00016767,2]
[403601007,1769411450012,-767.0,0.00016767,2]
[403601008,1769411450022,-867.98,0.00016767,2]
[403601009,1769411450031,-6658.0,0.00016767,2]
[403601010,1769411450040,-2036.2,0.00016779,2]
[403601011,1769411450048,-300.0,0.0001678,2]
[403601012,1769411450059,-300.0,0.0001678,2]
[403601013,1769411450068,-300.0,0.0001678,2]
[403601014,1769411450078,-500.0,0.00016781,2]
[403601015,1769411450087,-500.0,0.00016781,2]
[403601016,1769411450096,-500.0,0.00016781,2]
[403601017,1769411450106,-500.0,0.00016781,2]
[403601018,1769411450115,-500.0,0.00016781,2]
[403601019,1769411450124,-500.0,0.00016781,2]
[403601020,1769411450133,-500.0,0.00016781,2]
[403601021,1769411450143,-500.0,0.00016781,2]
[403601022,1769411450152,-500.0,0.00016781,2]
[403601023,1769411450161,-500.0,0.00016781,2]
[403601024,1769411450170,-500.0,0.00016781,2]
[403601025,1769411450179,-500.0,0.00016781,2]
[403601026,1769411450188,-500.0,0.00016781,2]
[403601027,1769411450197,-500.0,0.00016781,2]
[403601028,1769411450207,-500.0,0.00016781,2]
[403601029,1769411450216,-500.0,0.00016781,2]
[403601030,1769411450225,-500.0,0.00016781,2]
[403601031,1769411450234,-500.0,0.00016781,2]
[403601032,1769411450244,-500.0,0.00016781,2]
[403601033,1769411450253,-500.0,0.00016781,2]
[403601034,1769411450262,-500.0,0.00016781,2]
[403601035,1769411450271,-500.0,0.00016781,2]
[403601036,1769411450281,-500.0,0.00016781,2]
[403601037,1769411450290,-500.0,0.00016781,2]
[403601038,1769411450299,-500.0,0.00016781,2]
[403601039,1769411450308,-500.0,0.00016781,2]
[403601040,1769411450318,-500.0,0.00016781,2]
[403601041,1769411450328,-500.0,0.00016781,2]
[403601042,1769411450337,-500.0,0.00016781,2]
[403601043,1769411450346,-500.0,0.00016781,2]
[403601044,1769411450355,-500.0,0.00016781,2]
[403601045,1769411450364,-500.0,0.00016781,2]
[403601046,1769411450373,-500.0,0.00016781,2]
[403601047,1769411450382,-500.0,0.00016781,2]
[403601048,1769411450392,-500.0,0.00016781,2]
[403601049,1769411450401,-500.0,0.00016781,2]
[403601050,1769411450411,-500.0,0.00016781,2]
[403601051,1769411450421,-500.0,0.00016781,2]
[403601052,1769411450430,-500.0,0.00016781,2]
[403601053,1769411450439,-500.0,0.00016781,2]
[403601054,1769411450448,-500.0,0.00016781,2]
[403601055,1769411450458,-500.0,0.00016781,2]
[403601056,1769411450467,-500.0,0.00016781,2]
[403601057,1769411450476,-500.0,0.00016781,2]
[403601058,1769411450485,-500.0,0.00016781,2]
[403601059,1769411450494,-500.0,0.00016781,2]
[403601060,1769411450504,-500.0,0.00016781,2]
[403601061,1769411450513,-500.0,0.00016781,2]
[403601062,1769411450523,-500.0,0.00016781,2]
[403601063,1769411450533,-500.0,0.00016781,2]
[403601064,1769411450542,-500.0,0.00016781,2]
[403601065,1769411450552,-500.0,0.00016781,2]
[403601066,1769411450561,-500.0,0.00016781,2]
[403601067,1769411450571,-500.0,0.00016781,2]
[403601068,1769411450581,-500.0,0.00016781,2]
[403601069,1769411450589,-500.0,0.00016781,2]
[403601070,1769411450599,-500.0,0.00016781,2]
[403601071,1769411450608,-500.0,0.00016781,2]
[403601072,1769411450618,-500.0,0.00016781,2]
[403601073,1769411450627,-500.0,0.00016781,2]
[403601074,1769411450637,-500.0,0.00016781,2]
[403601075,1769411450646,-500.0,0.00016781,2]
[403601076,1769411450656,-500.0,0.00016781,2]
[403601077,1769411450665,-500.0,0.00016781,2]
[403601078,1769411450674,-500.0,0.00016781,2]
[403601079,1769411450683,-500.0,0.00016781,2]
[403601080,1769411450692,-500.0,0.00016781,2]
[403601081,1769411450702,-500.0,0.00016781,2]
[403601082,1769411450717,-500.0,0.00016781,2]
[403601083,1769411450726,-500.0,0.00016781,2]
[403601084,1769411450735,-500.0,0.00016781,2]
[403601085,1769411450744,-500.0,0.00016781,2]
[403601086,1769411450755,-500.0,0.00016781,2]
[403601087,1769411450764,-500.0,0.00016781,2]
[403601088,1769411450773,-500.0,0.00016781,2]
[403601089,1769411450782,-500.0,0.00016781,2]
[403601090,1769411450791,-500.0,0.00016781,2]
[403601091,1769411450800,-500.0,0.00016781,2]
[403601092,1769411450809,-500.0,0.00016781,2]
[403601093,1769411450819,-500.0,0.00016781,2]
[403601094,1769411450828,-500.0,0.00016781,2]
[403601095,1769411450837,-500.0,0.00016781,2]
[403601096,1769411450846,-500.0,0.00016781,2]
[403601097,1769411450855,-500.0,0.00016781,2]
[403601098,1769411450864,-500.0,0.00016781,2]
[403601099,1769411450873,-500.0,0.00016781,2]
[403601100,1769411450882,-500.0,0.00016781,2]
[403601101,1769411450891,-500.0,0.00016781,2]
[403601102,1769411450900,-500.0,0.00016781,2]
[403601103,1769411450909,-500.0,0.00016781,2]
[403601104,1769411450918,-500.0,0.00016781,2]
[403601105,1769411450927,-500.0,0.00016781,2]
[403601106,1769411450937,-500.0,0.00016781,2]
[403601107,1769411450946,-500.0,0.00016781,2]
[403601108,1769411450955,-500.0,0.00016781,2]
[403601109,1769411450964,-500.0,0.00016781,2]
[403601110,1769411450974,-500.0,0.00016781,2]
[403601111,1769411450983,-500.0,0.00016781,2]
[403601112,1769411450992,-500.0,0.00016781,2]
[403601113,1769411451001,-500.0,0.00016781,2]
[403601114,1769411451011,-151.000011,0.00016781,2]
[403601115,1769411451020,-247.5036,0.00016781,2]
[403601116,1769411451029,-247.5036,0.00016781,2]
[403601117,1769411451038,-247.5036,0.00016781,2]
[403601118,1769411451047,-247.5036,0.00016781,2]
[403601119,1769411451057,-230.0,0.00016786,2]
[403601120,1769411451066,-155.0,0.00016796,2]
[403601121,1769411451075,-11572.55364352,0.00016813,2]
[403601122,1769411451084,-1000.0,0.0001682,2]
[403601123,1769411451094,-151.0,0.0001682,2]
[403601124,1769411451103,-1511.96,0.00016829,2]
[403601125,1769411451114,-230.0,0.00016829,2]
[403601126,1769411451123,-8081.75591382,0.0001683,2]
[403601127,1769411451134,-2000.0,0.0001683,2]
[403601128,1769411451143,-2000.0,0.0001683,2]
[403601129,1769411451153,-2000.0,0.0001683,2]
[403601130,1769411451163,-1000.0,0.00016837,2]
[403601131,1769411451172,-230.0,0.00016845,2]
[403601132,1769411451182,-200.0,0.00016863,2]
[403601133,1769411451191,-200.0,0.00016864,2]
[403601134,1769411451201,-200.0,0.00016864,2]
[403601135,1769411451210,-200.0,0.00016864,2]
[403601136,1769411451220,-500.63567767,0.00016884,2]
[403601137,1769411451229,-501.44171962,0.00016884,2]
[403601138,1769411451239,-501.66199463,0.00016884,2]
[403601139,1769411451248,-500.0,0.00016884,2]
[403601140,1769411451258,-500.0,0.00016884,2]
[403601141,1769411451267,-501.02318751,0.00016884,2]
[403601142,1769411451277,-500.0,0.00016884,2]
[403601143,1769411451286,-250.07737695,0.00016884,2]
[403601144,1769411451296,-501.21016651,0.00016884,2]
[403601145,1769411451305,-501.57799136,0.00016884,2]
[403601146,1769411451315,-500.46570167,0.00016884,2]
[403601147,1769411451324,-500.93909876,0.00016884,2]
[403601148,1769411451333,-500.79595583,0.00016884,2]
[403601149,1769411451342,-500.0,0.00016884,2]
[403601150,1769411451352,-500.88310046,0.00016884,2]
[403601151,1769411451361,-500.0,0.00016884,2]
[403601152,1769411451370,-501.16065005,0.00016884,2]
[403601153,1769411451380,-500.03510196,0.00016884,2]
[403601154,1769411451389,-180.06810397,0.00016884,2]
[403601155,1769411451398,-500.0,0.00016884,2]
[403601156,1769411451407,-159.9184,0.00016884,2]
[403601157,1769411451417,-500.0,0.00016884,2]
[403601158,1769411451426,-500.0,0.00016884,2]
[403601159,1769411451435,-500.0,0.00016884,2]
[403601160,1769411451445,-500.0,0.00016884,2]
[403601161,1769411451454,-500.89949552,0.00016884,2]
[403601162,1769411451463,-500.0,0.00016884,2]
[403601163,1769411451474,-500.97270712,0.00016884,2]
[403601164,1769411451483,-501.78167983,0.00016884,2]
[403601165,1769411451493,-500.0,0.00016884,2]
[403601166,1769411451502,-501.32593158,0.00016884,2]
[403601167,1769411451511,-500.0,0.00016884,2]
[403601168,1769411451521,-500.0,0.00016884,2]
[403601169,1769411451530,-501.61147833,0.00016884,2]
[403601170,1769411451539,-501.32277439,0.00016884,2]
[403601171,1769411451548,-2036.2,0.0001689,2]
[403601172,1769411451557,-200.0,0.00016893,2]
[403601173,1769411451567,-304.20833879,0.00016895,2]
[403601174,1769411451576,-230.0,0.00016895,2]
[403601175,1769411451586,-889.92,0.00016904,2]
[403601176,1769411451595,-200.0,0.00016904,2]
[403601177,1769411451604,-151.85735143,0.00016911,2]
[403601178,1769411451614,-600.0,0.00016915,2]
[403601179,1769411451623,-1000.0,0.00016931,2]
[403601180,1769411451633,-753.04363973,0.00016938,2]
[403601181,1769411451643,-150.0,0.00016943,2]
[403601182,1769411451652,-230.0,0.00016944,2]
[403601183,1769411451661,-151.0,0.00016949,2]
[403601184,1769411451670,-166.12685918,0.00016949,2]
[403601185,1769411451680,-158.0,0.00016949,2]
[403601186,1769411451690,-1000.0,0.00016952,2]
[403601187,1769411451699,-254.56394522,0.00016961,2]
[403601188,1769411451710,-1000.0,0.00016966,2]
[403601189,1769411451720,-334.5472959,0.0001697,2]
[403601190,1769411451729,-798.0,0.00016986,2]
[403601191,1769411451738,-1000.0,0.00016986,2]
[403601192,1769411451748,-602.9035795,0.00016993,2]
[403601193,1769411451757,-300.0,0.00016999,2]
[403601194,1769411451766,-300.0,0.00016999,2]
[403601195,1769411451775,-211.32846507,0.00016999,2]
[403601196,1769411451786,-367769.73444688,0.00017,2]
[403601197,1769411451795,-131280.33158642,0.00017,2]
[403601198,1769411451804,-1000.0,0.00017,2]
[403601199,1769411451813,-1000.0,0.00017,2]
[403601200,1769411451823,-1000.0,0.00017,2]
[403601201,1769411451832,-1000.0,0.00017,2]
[403601202,1769411451841,-1000.0,0.00017,2]
[403601203,1769411451850,-1000.0,0.00017,2]
[403601204,1769411451859,-1000.0,0.00017,2]
[403601205,1769411451869,-1039.17,0.00017,2]
[403601206,1769411451878,-250.0,0.00017,2]
[403601207,1769411451887,-400.55876,0.00017,2]
[403601208,1769411451896,-400.55876,0.00017,2]
[403601209,1769411451906,-400.55876,0.00017,2]
[403601210,1769411451915,-400.55876,0.00017,2]
[403601211,1769411451924,-2000.0,0.00017,2]
[403601212,1769411451933,-2000.0,0.00017,2]
[403601213,1769411451942,-2000.0,0.00017,2]
[403601214,1769411451951,-602.0,0.00017,2]
[403601215,1769411451962,-928.0,0.00017,2]
[403601216,1769411451971,-2036.2,0.00017001,2]
[403601217,1769411451980,-230.0,0.0001703,2]
[403601218,1769411451988,-150.0,0.00017034,2]
[403601219,1769411451997,-1086.0,0.0001704,2]
[403601220,1769411452006,-1086.0,0.0001704,2]
[403601221,1769411452016,-1086.0,0.0001704,2]
[403601222,1769411452025,-1086.0,0.0001704,2]
[403601223,1769411452034,-1086.0,0.0001704,2]
[403601224,1769411452043,-837.0,0.0001704,2]
[403601225,1769411452051,-1086.0,0.0001704,2]
[403601226,1769411452060,-1086.0,0.0001704,2]
[403601227,1769411452069,-1086.0,0.0001704,2]
[403601228,1769411452078,-1086.0,0.0001704,2]
[403601229,1769411452087,-1086.0,0.0001704,2]
[403601230,1769411452096,-1086.0,0.0001704,2]
[403601231,1769411452105,-163.0,0.0001704,2]
[403601232,1769411452114,-247.5036,0.0001704,2]
[403601233,1769411452124,-247.5036,0.0001704,2]
[403601234,1769411452133,-247.5036,0.0001704,2]
[403601235,1769411452142,-247.5036,0.0001704,2]
[403601236,1769411452152,-1086.0,0.0001704,2]
[403601237,1769411452161,-867.98,0.00017041,2]
[403601238,1769411452171,-626.61,0.00017041,2]
[403601239,1769411452180,-613.06,0.00017041,2]
[403601240,1769411452189,-484.73,0.00017041,2]
[403601241,1769411452201,-484.73,0.00017041,2]
[403601242,1769411452211,-613.06,0.00017041,2]
[403601243,1769411452220,-613.06,0.00017041,2]
[403601244,1769411452229,-484.73,0.00017041,2]
[403601245,1769411452238,-613.06,0.00017041,2]
[403601246,1769411452248,-484.73,0.00017041,2]
[403601247,1769411452257,-613.06,0.00017041,2]
[403601248,1769411452266,-484.73,0.00017041,2]
[403601249,1769411452275,-463.75,0.00017041,2]
[403601250,1769411452284,-613.06,0.00017041,2]
[403601251,1769411452293,-613.06,0.00017041,2]
[403601252,1769411452303,-230.0,0.00017051,2]
[403601253,1769411452311,-11572.55364352,0.00017085,2]
[403601254,1769411452321,-158.49064135,0.00017087,2]
[403601255,1769411452330,-917.0,0.000171,2]
[403601256,1769411452340,-982.0,0.000171,2]
[403601257,1769411452349,-305.29758295,0.00017101,2]
[403601258,1769411452359,-1000.0,0.00017112,2]
[403601259,1769411452368,-2036.2,0.00017112,2]
[403601260,1769411452378,-1511.96,0.00017118,2]
[403601261,1769411452389,-241.96889033,0.00017118,2]
[403601262,1769411452399,-1000.0,0.00017121,2]
[403601263,1769411452408,-152.0,0.00017133,6]
[403601264,1769411452417,-200.0,0.00017142,2]
[403601265,1769411452427,-1000.0,0.00017175,2]
[403601266,1769411452436,-889.92,0.00017178,2]
[403601267,1769411452446,-151.0,0.00017178,2]
[403601268,1769411452455,-150.0,0.00017178,2]
[403601269,1769411452464,-150.0,0.00017178,2]
[403601270,1769411452473,-175.76,0.00017178,2]
[403601271,1769411452483,-150.0,0.00017178,2]
[403601272,1769411452493,-558.94,0.00017178,2]
[403601273,1769411452503,-172.18,0.00017178,2]
[403601274,1769411452512,-150.0,0.00017178,2]
[403601275,1769411452522,-558.94,0.00017178,2]
[403601276,1769411452531,-150.0,0.00017178,2]
[403601277,1769411452541,-150.0,0.00017178,2]
[403601278,1769411452551,-150.0,0.00017178,2]
[403601279,1769411452560,-150.0,0.00017178,2]
[403601280,1769411452569,-7500.0,0.000172,6]
[403601281,1769411452579,-230.0,0.00017218,2]
[403601282,1769411452588,-2036.2,0.00017223,2]
[403601283,1769411452597,-304.20833879,0.0001723,2]
[403601284,1769411452607,-1000.0,0.00017231,2]
[403601285,1769411452617,-952.63336648,0.00017245,2]
[403601286,1769411452626,-194.72792766,0.00017245,2]
[403601287,1769411452636,-151.0,0.00017245,2]
[403601288,1769411452645,-1000.0,0.00017254,2]
[403601289,1769411452655,-1000.0,0.0001726,2]
[403601290,1769411452664,-1086.0,0.00017267,2]
[403601291,1769411452674,-285.74,0.00017282,2]
[403601292,1769411452684,-9400.0,0.000173,6]
[403601293,1769411452693,-318.15,0.00017312,2]
[403601294,1769411452703,-867.98,0.00017315,2]
[403601295,1769411452717,-230.0,0.00017316,2]
[403601296,1769411452726,-155.0,0.00017321,2]
[403601297,1769411452736,-2036.2,0.00017334,2]
[403601298,1769411452745,-230.0,0.0001734,2]
[403601299,1769411452756,-11572.55364352,0.00017357,2]
[403601300,1769411452765,-1086.0,0.0001736,2]
[403601301,1769411452775,-837.0,0.0001736,2]
[403601302,1769411452786,-1086.0,0.0001736,2]
[403601303,1769411452795,-1086.0,0.0001736,2]
[403601304,1769411452804,-1086.0,0.0001736,2]
[403601305,1769411452813,-1086.0,0.0001736,2]
[403601306,1769411452822,-1086.0,0.0001736,2]
[403601307,1769411452831,-837.0,0.0001736,2]
[403601308,1769411452840,-1086.0,0.0001736,2]
[403601309,1769411452850,-1086.0,0.0001736,2]
[403601310,1769411452859,-1086.0,0.0001736,2]
[403601311,1769411452869,-1086.0,0.0001736,2]
[403601312,1769411452879,-1086.0,0.0001736,2]
[403601313,1769411452888,-826.0,0.0001736,2]
[403601314,1769411452898,-1086.0,0.0001736,2]
[403601315,1769411452909,-167.65,0.00017399,2]
[403601316,1769411452918,-1800.0,0.000174,6]
[403601317,1769411452928,-230.0,0.00017417,2]
[403601318,1769411452937,-230.0,0.00017423,2]
[403601319,1769411452946,-1000.0,0.00017432,2]
[403601320,1769411452955,-752.73340052,0.00017432,2]
[403601321,1769411452965,-497.96084495,0.00017432,2]
[403601322,1769411452974,-1000.0,0.00017432,2]
[403601323,1769411452984,-1000.0,0.00017432,2]
[403601324,1769411452993,-1000.0,0.00017432,2]
[403601325,1769411453003,-1000.0,0.00017432,2]
[403601326,1769411453013,-1000.0,0.00017432,2]
[403601327,1769411453022,-1002.64656649,0.00017432,2]
[403601328,1769411453031,-1000.0,0.00017432,2]
[403601329,1769411453040,-641.30995619,0.00017432,2]
[403601330,1769411453049,-1000.0,0.00017432,2]
[403601331,1769411453058,-1000.0,0.00017432,2]
[403601332,1769411453067,-200.0,0.00017437,2]
[403601333,1769411453076,-2036.2,0.00017445,2]
[403601334,1769411453085,-889.92,0.00017452,2]
[403601335,1769411453094,-20000.0,0.00017463,7]
[403601336,1769411453103,-230.0,0.00017489,2]
[403601337,1769411453112,-3304.51943532,0.000175,3]
[403601338,1769411453121,-1800.0,0.000175,6]
[403601339,1769411453130,-230.0,0.00017508,2]
[403601340,1769411453139,-241.96889033,0.00017509,2]
[403601341,1769411453147,-798.0,0.00017534,2]